bitfinex/quotes_BTCUSD_20250423
["timestamp","ask_amount","ask_price","bid_price","bid_amount"]
[1745419459899,0.0008496,92927.0,92926.0,0.99669469]
[1745419461021,0.0008496,92927.0,92926.0,1.03372218]
[1745419462219,0.0474,92949.0,92928.0,0.56976123]
[1745419462444,0.00217834,92955.0,92954.0,0.56970103]
[1745419462663,0.00217834,92955.0,92954.0,4.45985786]
[1745419462883,0.00217834,92955.0,92954.0,4.5301381]
[1745419463579,0.002,92969.0,92956.0,0.5696964]
[1745419463796,0.002,92969.0,92956.0,5.67658654]
[1745419464033,0.002,92969.0,92956.0,5.74668525]
[1745419465158,0.002,92969.0,92968.0,0.55512778]
[1745419465374,0.002,92969.0,92968.0,2.67843277]
[1745419465588,0.002,92969.0,92968.0,1.79233152]
[1745419465823,0.002,92969.0,92968.0,1.58543477]
[1745419466311,0.002,92969.0,92968.0,1.62220993]
[1745419466970,0.002,92969.0,92968.0,1.37030699]
[1745419467187,0.002,92969.0,92968.0,0.84043415]
[1745419467413,0.002,92969.0,92968.0,0.80365899]
[1745419467645,0.002,92969.0,92968.0,0.79686499]
[1745419468596,0.002,92969.0,92968.0,0.83364015]
[1745419469226,0.002,92969.0,92968.0,0.8668929]
[1745419469434,0.002,92969.0,92968.0,0.83364015]
[1745419470086,0.002,92969.0,92968.0,0.8668929]
[1745419470300,0.002,92969.0,92968.0,0.79686499]
[1745419473191,0.002,92969.0,92968.0,0.83364015]
[1745419473407,0.002,92969.0,92968.0,0.79686499]
[1745419473637,0.002,92969.0,92968.0,0.83364015]
[1745419474717,0.0501486,92982.0,92981.0,0.5550977]
[1745419474718,0.0008486,92982.0,92981.0,0.5550977]
[1745419474953,0.0008486,92982.0,92981.0,5.70867038]
[1745419475174,0.0008486,92982.0,92981.0,5.71509354]
[1745419475615,0.0008486,92982.0,92981.0,5.74834629]
[1745419475843,0.002,92989.0,92982.0,0.42449804]
[1745419476086,0.002,92989.0,92982.0,4.88196018]
[1745419476306,0.002,92989.0,92982.0,4.88867154]
[1745419480668,0.002,92989.0,92982.0,4.88967154]
[1745419482411,0.002,92989.0,92982.0,4.89067154]
[1745419482595,0.002,92989.0,92982.0,4.59395054]
[1745419482839,1.10258022,92983.0,92982.0,4.69055054]
[1745419483040,0.03602695,92983.0,92982.0,4.69490559]
[1745419483260,0.0481,93021.0,93006.0,0.56958073]
[1745419483443,0.0481,93021.0,93009.0,0.24032544]
[1745419483647,0.000849,93021.0,93011.0,0.67645931]
[1745419483858,0.000849,93021.0,93011.0,5.70976781]
[1745419484264,0.000849,93021.0,93011.0,5.74737561]
[1745419485043,0.000849,93021.0,93011.0,5.72083422]
[1745419485284,0.000849,93021.0,93011.0,5.68752572]
[1745419485531,0.000849,93021.0,93011.0,5.72083422]
[1745419485751,0.000849,93021.0,93011.0,5.81540572]
[1745419486422,0.000849,93021.0,93011.0,5.85071422]
[1745419486636,0.000849,93021.0,93011.0,0.81740572]
[1745419486853,0.046,93013.0,93011.0,3.47371904]
[1745419487083,0.046,93013.0,93011.0,1.00759004]
[1745419487547,0.04607,93020.0,93011.0,1.00759004]
[1745419487772,0.04607,93020.0,93011.0,1.00559004]
[1745419488614,0.04607,93020.0,93011.0,1.00359004]
[1745419488846,7e-05,93020.0,93011.0,1.34359004]
[1745419489061,7e-05,93020.0,93011.0,1.35913089]
[1745419489280,7e-05,93020.0,93011.0,1.36659929]
[1745419489497,0.000849,93021.0,93020.0,0.35454085]
[1745419489701,0.000849,93021.0,93020.0,5.49357268]
[1745419489913,0.000849,93021.0,93020.0,5.50104108]
[1745419490131,0.000849,93021.0,93020.0,5.54106094]
[1745419490338,0.000849,93050.0,93041.0,0.56949984]
[1745419490541,0.000849,93050.0,93041.0,4.61462167]
[1745419490753,0.000849,93050.0,93041.0,5.74930857]
[1745419490968,0.000849,93050.0,93041.0,5.75601993]
[1745419491179,1e-08,93042.0,93041.0,5.72271143]
[1745419491414,1e-08,93042.0,93041.0,0.72271143]
[1745419491633,1e-08,93042.0,93041.0,0.76037498]
[1745419491838,1e-08,93049.0,93048.0,0.57048367]
[1745419492056,1e-08,93049.0,93048.0,5.68484221]
[1745419492228,1e-08,93050.0,93049.0,5.38884935]
[1745419492463,1e-08,93050.0,93049.0,0.49573949]
[1745419492675,1e-08,93050.0,93049.0,0.50245085]
[1745419492890,0.0454,93073.0,93061.0,0.56945364]
[1745419493106,0.0008494,93076.0,93061.0,5.74065298]
[1745419493302,0.0008494,93076.0,93061.0,5.77396148]
[1745419493510,0.0008494,93076.0,93061.0,5.78402789]
[1745419493727,0.0008494,93076.0,93061.0,5.75815411]
[1745419493946,0.0008494,93076.0,93061.0,5.79146261]
[1745419494201,0.0430494,93084.0,93082.0,0.01454085]
[1745419494416,0.0430494,93084.0,93083.0,3.47251804]
[1745419494622,0.0430494,93084.0,93083.0,2.76847112]
[1745419495099,0.048,93096.0,93088.0,0.55485046]
[1745419495326,0.0477,93104.0,93088.0,2.38118465]
[1745419495500,0.0477,93104.0,93088.0,2.38861937]
[1745419495701,0.0477,93104.0,93088.0,2.39533073]
[1745419495918,0.0477,93104.0,93088.0,2.40987158]
[1745419496335,0.0477,93104.0,93088.0,2.44318008]
[1745419496555,0.000849,93100.0,93088.0,2.44418008]
[1745419496760,0.000849,93100.0,93088.0,2.43674536]
[1745419496986,0.000849,93100.0,93088.0,2.43574536]
[1745419497442,0.000849,93100.0,93088.0,2.40243686]
[1745419497977,0.00031579,93109.0,93105.0,0.01074056]
[1745419498182,0.00031579,93109.0,93106.0,0.02485531]
[1745419498401,0.00031579,93109.0,93107.0,0.00671136]
[1745419498559,0.00131579,93109.0,93108.0,2.17052256]
[1745419498770,0.00131579,93109.0,93108.0,1.81010755]
[1745419498980,0.00131579,93109.0,93108.0,1.47307055]
[1745419499214,0.00131579,93109.0,93108.0,0.92883941]
[1745419499402,0.00131579,93109.0,93108.0,0.35006641]
[1745419499604,0.00131579,93109.0,93108.0,0.01006641]
[1745419499807,0.05011579,93109.0,93108.0,0.01006641]
[1745419500798,0.05011579,93109.0,93093.0,0.01074194]
[1745419501021,0.05011579,93109.0,93092.0,0.34]
[1745419501022,0.0493,93107.0,93092.0,0.34]
[1745419501230,0.048,93106.0,93093.0,0.0074164]
[1745419501465,0.0499,93105.0,93093.0,0.0074164]
[1745419501695,0.043,93104.0,93084.0,0.01074298]
[1745419501900,0.043,93104.0,93087.0,0.34]
[1745419502340,0.043,93104.0,93084.0,0.33249156]
[1745419502341,0.043,93104.0,93084.0,0.11763312]
[1745419502551,0.0496,93099.0,93071.0,0.01074448]
[1745419502775,0.0496,93099.0,93057.0,0.12632]
[1745419502776,0.0496,93097.0,93085.0,0.00742024]
[1745419503013,0.10689014,93096.0,93085.0,0.00742024]
[1745419503251,0.05076,93095.0,93084.0,0.002]
[1745419503500,0.05076,93095.0,93064.0,0.01074529]
[1745419503501,0.047,93094.0,93064.0,0.01074529]
[1745419503718,0.12763579,93109.0,93062.0,0.432134]
[1745419503719,0.46653803,93090.0,93062.0,0.432134]
[1745419503949,0.46653803,93090.0,93055.0,0.08594573]
[1745419503950,0.047,93088.0,93055.0,0.08594573]
[1745419504155,0.0479,93086.0,93056.0,0.525811]
[1745419504420,0.15479014,93086.0,93062.0,0.01074552]
[1745419504642,0.05249143,93085.0,93059.0,0.01074587]
[1745419504886,0.05226038,93084.0,93060.0,0.503949]
[1745419505112,0.10689014,93083.0,93061.0,0.34]
[1745419505333,0.0971,93082.0,93063.0,0.0107454]
[1745419505585,0.00469143,93081.0,93062.0,0.01074552]
[1745419505803,0.00469143,93081.0,93062.0,0.35074552]
[1745419506015,0.0485,93082.0,93062.0,0.34]
[1745419506231,0.0476,93081.0,93062.0,0.34]
[1745419506442,0.0478,93080.0,93062.0,0.34]
[1745419506655,0.0476,93079.0,93062.0,0.34]
[1745419507002,0.0478,93077.0,93059.0,0.01074587]
[1745419507221,0.0478,93077.0,93059.0,0.34]
[1745419507421,0.05056051,93076.0,93059.0,0.34]
[1745419507623,0.0457,93075.0,93050.0,0.01074691]
[1745419507832,0.0457,93075.0,93047.0,0.01074725]
[1745419507833,0.0457,93069.0,93045.0,0.2149486]
[1745419508032,0.0925,93069.0,93048.0,0.01074714]
[1745419508238,0.00459357,93068.0,93046.0,0.01074737]
[1745419508464,0.46653803,93060.0,93033.0,0.04289056]
[1745419508684,0.0457,93058.0,93033.0,0.03214169]
[1745419508900,0.0451,93055.0,93030.0,0.01074922]
[1745419509110,0.05087044,93054.0,93029.0,0.22573521]
[1745419509323,0.05087044,93054.0,93038.0,0.01074829]
[1745419509527,0.0463,93054.0,93038.0,0.01074829]
[1745419509994,0.0463,93054.0,93038.0,0.22571341]
[1745419510199,0.0463,93054.0,93037.0,0.01074841]
[1745419510409,0.0463,93054.0,93038.0,0.104285]
[1745419510667,0.0045003,93053.0,93038.0,0.104285]
[1745419510885,0.0045003,93053.0,93031.0,0.002]
[1745419510886,0.11139044,93053.0,93031.0,0.002]
[1745419511092,0.46653803,93050.0,93031.0,0.002]
[1745419511236,0.19999014,93049.0,93031.0,0.002]
[1745419511833,0.0045003,93048.0,93035.0,0.01074864]
[1745419512039,0.0045003,93048.0,93034.0,0.01074875]
[1745419512241,0.0045003,93048.0,93035.0,0.260468]
[1745419512534,0.0045003,93048.0,93034.0,0.214054]
[1745419512742,0.0931,93049.0,93033.0,0.22480287]
[1745419512933,0.0931,93049.0,93035.0,0.00670835]
[1745419513238,0.0931,93049.0,93036.0,0.144368]
[1745419513458,0.001,93048.0,93036.0,0.00670835]
[1745419513639,0.001,93048.0,93037.0,0.01006277]
[1745419513883,0.0045003,93047.0,93037.0,0.01006277]
[1745419514093,0.0045003,93047.0,93038.0,0.00670835]
[1745419514301,0.0045003,93047.0,93038.0,0.01006277]
[1745419514530,0.0941,93049.0,93038.0,0.01006277]
[1745419514749,0.0045003,93046.0,93038.0,0.01006277]
[1745419514966,0.0941,93049.0,93039.0,0.00670835]
[1745419515406,0.0045003,93048.0,93040.0,0.00670835]
[1745419515625,0.0045003,93048.0,93040.0,0.01006277]
[1745419515866,0.11065192,93047.0,93040.0,0.01006277]
[1745419516083,0.10689014,93047.0,93041.0,0.00670835]
[1745419516267,0.10689014,93047.0,93041.0,0.01006277]
[1745419516474,0.0045003,93046.0,93042.0,0.00670835]
[1745419516693,0.15725215,93045.0,93031.0,0.002]
[1745419516915,0.46653803,93041.0,93031.0,0.002]
[1745419517154,0.10689014,93040.0,93031.0,0.002]
[1745419517365,0.0921,93039.0,93031.0,0.002]
[1745419517579,0.11065287,93038.0,93031.0,0.002]
[1745419517789,0.0466,93037.0,93031.0,0.002]
[1745419518005,0.0466,93035.0,93005.0,0.22579345]
[1745419518232,0.0466,93035.0,93002.0,0.22579972]
[1745419518233,0.15239014,93034.0,93002.0,0.22579972]
[1745419518451,0.15239014,93034.0,93000.0,0.42594573]
[1745419518452,0.0485,93033.0,93000.0,0.42594573]
[1745419518667,0.0948,93021.0,93000.0,0.08594573]
[1745419518876,0.0948,93021.0,93002.0,0.0004239]
[1745419518877,0.11065318,93020.0,93002.0,0.0004239]
[1745419519101,0.10689014,93020.0,93002.0,0.0004239]
[1745419520973,0.10989014,93020.0,93002.0,0.0004239]
[1745419521380,0.003,93020.0,93004.0,0.01075222]
[1745419521612,0.003,93020.0,93004.0,0.34]
[1745419522047,0.003,93020.0,93005.0,0.01075211]
[1745419522282,0.003,93020.0,93005.0,0.22579393]
[1745419522510,0.003,93020.0,93008.0,0.01075176]
[1745419522732,0.003,93020.0,93012.0,0.0111752]
[1745419522956,0.003,93020.0,93012.0,0.0004239]
[1745419523169,0.003,93020.0,93012.0,0.0111752]
[1745419523387,0.003,93020.0,93014.0,0.34]
[1745419523624,0.003,93020.0,93015.0,0.136268]
[1745419523847,0.003,93020.0,93014.0,0.34]
[1745419524279,0.00376262,93019.0,93012.0,0.0004239]
[1745419524491,0.10689014,93018.0,93012.0,0.0004239]
[1745419527233,0.10989014,93018.0,93012.0,0.0004239]
[1745419527955,0.003,93018.0,93012.0,0.0004239]
[1745419529069,0.003,93018.0,93013.0,0.00671108]
[1745419529289,0.003,93018.0,93014.0,0.00671108]
[1745419529705,0.003,93018.0,93013.0,0.00671108]
[1745419529938,0.0948,93021.0,93013.0,0.00671108]
[1745419530155,0.10689014,93018.0,93013.0,0.00671108]
[1745419530366,0.11089014,93018.0,93013.0,0.00671108]
[1745419530994,0.10689014,93018.0,93013.0,0.00671108]
[1745419531203,0.10689014,93018.0,93012.0,0.0004239]
[1745419531678,0.00885283,93017.0,93012.0,0.0004239]
[1745419533437,0.0948,93021.0,93012.0,0.0004239]
[1745419533887,0.0948,93021.0,93013.0,0.00671062]
[1745419534114,0.003,93017.0,93013.0,0.00671062]
[1745419534315,0.003,93017.0,93014.0,0.35075106]
[1745419534539,0.0948,93021.0,93014.0,0.00671062]
[1745419534923,0.00876534,93020.0,93015.0,0.00671062]
[1745419535173,0.0948,93021.0,93015.0,0.00671062]
[1745419535382,0.0948,93021.0,93016.0,0.00671062]
[1745419536013,0.0978,93021.0,93017.0,0.00671062]
[1745419536532,0.129219,93020.0,93017.0,0.00671062]
[1745419536752,0.094,93019.0,93012.0,0.0004239]
[1745419536966,0.094,93019.0,92975.0,0.2151098]
[1745419536967,0.10689014,93016.0,92970.0,0.21512261]
[1745419537195,0.46769427,93001.0,92963.0,0.22589491]
[1745419537421,0.0458,92999.0,92958.0,0.01075754]
[1745419537638,0.46769427,92990.0,92959.0,0.01075743]
[1745419537867,0.16015462,92989.0,92957.0,0.01075766]
[1745419538084,0.16015462,92989.0,92965.0,0.34]
[1745419538085,0.16498586,92989.0,92965.0,0.34]
[1745419538309,0.16498586,92989.0,92958.0,0.08594573]
[1745419538310,0.16875033,92989.0,92958.0,0.08594573]
[1745419538709,0.0462,92988.0,92961.0,0.01075719]
[1745419538974,0.10689014,92987.0,92960.0,0.01075731]
[1745419539192,0.00859572,92986.0,92962.0,0.01075708]
[1745419539418,0.00859572,92986.0,92957.0,0.01075766]
[1745419539419,0.11065483,92985.0,92920.0,0.34437905]
[1745419539633,0.11065483,92985.0,92951.0,0.01275835]
[1745419539822,0.00848351,92984.0,92954.0,0.010758]
[1745419540067,0.10689014,92983.0,92955.0,0.01075789]
[1745419540286,0.003765,92982.0,92954.0,0.010758]
[1745419540505,0.10689014,92981.0,92961.0,0.01075719]
[1745419540711,0.11537365,92981.0,92957.0,0.01075766]
[1745419541144,0.02332106,92980.0,92956.0,0.0004241]
[1745419541389,0.15569014,92979.0,92956.0,0.0004241]
[1745419541641,0.047,92977.0,92956.0,0.0004241]
[1745419541884,0.1106556,92976.0,92956.0,0.0004241]
[1745419542090,0.126,92975.0,92956.0,0.0004241]
[1745419542294,0.23289014,92975.0,92956.0,0.0004241]
[1745419542828,0.23289014,92975.0,92968.0,0.34]
[1745419542829,0.00838198,92975.0,92968.0,0.34]
[1745419543049,0.00838198,92975.0,92972.0,0.01075592]
[1745419543278,0.00838198,92975.0,92970.0,0.34]
[1745419543502,0.001,92976.0,92970.0,0.34]
[1745419543926,0.006,92975.0,92970.0,0.34]
[1745419544137,0.006,92975.0,92967.0,0.0107565]
[1745419544350,0.001,92976.0,92967.0,0.0107565]
[1745419544565,0.00838198,92975.0,92967.0,0.0107565]
[1745419544743,0.00838198,92975.0,92968.0,0.01075638]
[1745419544979,0.00838198,92975.0,92973.0,0.3404243]
[1745419545456,0.006,92976.0,92973.0,0.3404243]
[1745419545890,0.10689014,92975.0,92973.0,0.3404243]
[1745419546096,0.10689014,92975.0,92973.0,0.0004243]
[1745419546310,0.11827212,92975.0,92973.0,0.0004243]
[1745419547190,0.01138198,92975.0,92973.0,0.0004243]
[1745419548678,0.01138198,92975.0,92974.0,0.00713846]
[1745419549985,0.16903691,92975.0,92974.0,0.00713846]
[1745419550196,0.1860406,92975.0,92974.0,0.00713846]
[1745419550491,0.16527212,92975.0,92974.0,0.00713846]
[1745419551125,0.16527212,92975.0,92974.0,0.0004242]
[1745419551987,0.05838198,92975.0,92974.0,0.0004242]
[1745419553266,0.16903696,92975.0,92974.0,0.0004242]
[1745419554939,0.16527212,92975.0,92974.0,0.0004242]
[1745419555127,0.29091212,92975.0,92974.0,0.0004242]
[1745419556284,0.32010333,92975.0,92974.0,0.0004242]
[1745419557002,0.29091212,92975.0,92974.0,0.0004242]
[1745419562917,0.13702198,92975.0,92974.0,0.0004242]
[1745419566408,0.01138198,92975.0,92974.0,0.0004242]
[1745419566836,0.003,92975.0,92974.0,0.0004242]
[1745419567062,0.01081824,92975.0,92974.0,0.0004242]
[1745419568144,0.003,92975.0,92974.0,0.0004242]
[1745419569237,0.01081824,92975.0,92974.0,0.0004242]
[1745419570150,0.01458293,92975.0,92974.0,0.0004242]
[1745419570364,0.12752489,92975.0,92974.0,0.0004242]
[1745419571015,0.23576574,92975.0,92974.0,0.0004242]
[1745419571222,0.23200105,92975.0,92974.0,0.0004242]
[1745419571653,0.22900105,92975.0,92974.0,0.0004242]
[1745419571864,0.23300105,92975.0,92974.0,0.0004242]
[1745419572104,0.22694923,92975.0,92974.0,0.0004242]
[1745419572305,0.01454085,92974.0,92973.0,0.0004243]
[1745419572526,0.1747968,92974.0,92973.0,0.0004243]
[1745419572753,0.182632,92974.0,92973.0,0.0004243]
[1745419572973,0.2111152,92974.0,92973.0,0.0004243]
[1745419573672,0.182632,92974.0,92973.0,0.0004243]
[1745419573910,0.16432534,92974.0,92973.0,0.0004243]
[1745419574382,0.0078352,92974.0,92973.0,0.0004243]
[1745419574616,0.0078352,92974.0,92973.0,0.0014243]
[1745419574822,0.0078352,92974.0,92973.0,0.3414243]
[1745419575029,0.001,92975.0,92973.0,0.3414243]
[1745419575446,0.006,92974.0,92973.0,0.3414243]
[1745419575867,0.001,92975.0,92973.0,0.0014243]
[1745419576305,0.001,92975.0,92971.0,0.002]
[1745419576306,0.00633669,92974.0,92971.0,0.002]
[1745419576523,0.24833731,92974.0,92971.0,0.002]
[1745419576735,0.12143099,92972.0,92940.0,0.0004241]
[1745419576952,0.10689014,92965.0,92940.0,0.0004241]
[1745419577219,0.048,92963.0,92940.0,0.0004241]
[1745419577487,0.10689014,92961.0,92940.0,0.0004241]
[1745419577726,0.11065639,92960.0,92940.0,0.0004241]
[1745419577934,0.0462,92959.0,92940.0,0.0004241]
[1745419578155,0.1106564,92958.0,92940.0,0.0004241]
[1745419578386,0.10689014,92957.0,92940.0,0.0004241]
[1745419578615,0.11322683,92957.0,92940.0,0.0004241]
[1745419579274,0.13406944,92956.0,92940.0,0.0004241]
[1745419579498,0.12143099,92955.0,92940.0,0.0004241]
[1745419579761,0.17013099,92952.0,92951.0,0.001]
[1745419579998,0.01454085,92943.0,92940.0,0.0004241]
[1745419580225,0.051,92940.0,92935.0,0.0004248]
[1745419580443,0.20847014,92940.0,92935.0,0.0004248]
[1745419580887,0.01554085,92937.0,92935.0,0.0004248]
[1745419581233,0.1761986,92937.0,92935.0,0.0004248]
[1745419581451,0.18253529,92937.0,92935.0,0.0004248]
[1745419581679,0.18253529,92937.0,92921.0,0.0004243]
[1745419581680,0.001,92925.0,92921.0,0.0004243]
[1745419581913,0.0489,92931.0,92919.0,0.0004245]
[1745419581914,0.10689014,92922.0,92919.0,0.0004245]
[1745419582376,0.0101041,92921.0,92919.0,0.0004245]
[1745419582606,0.10689014,92920.0,92919.0,0.0004245]
[1745419583026,0.11322683,92920.0,92919.0,0.0004245]
[1745419583736,0.00633669,92920.0,92919.0,0.0004245]
[1745419583959,0.00633669,92920.0,92919.0,0.3414245]
[1745419584186,0.12564,92942.0,92934.0,0.01076032]
[1745419584406,0.051,92977.0,92936.0,0.34]
[1745419584407,0.00819388,92953.0,92936.0,0.34]
[1745419584626,0.10689014,92952.0,92936.0,0.34]
[1745419585084,0.12528,92959.0,92936.0,0.34]
[1745419585085,0.12528,92959.0,92943.0,0.34]
[1745419585311,0.12528,92959.0,92942.0,0.22594641]
[1745419585312,0.12528,92959.0,92945.0,0.01075905]
[1745419585534,0.12528,92959.0,92949.0,0.34]
[1745419585763,0.12318364,92958.0,92921.0,0.34]
[1745419585987,0.46870687,92950.0,92925.0,0.01076136]
[1745419586204,0.12528,92959.0,92940.0,0.01075962]
[1745419586418,0.10689014,92958.0,92936.0,0.34]
[1745419587327,0.10689014,92957.0,92935.0,0.34]
[1745419587591,0.13030715,92957.0,92935.0,0.34]
[1745419587995,0.10689014,92957.0,92935.0,0.34]
[1745419588417,0.10689014,92957.0,92933.0,0.35076044]
[1745419588639,0.10789014,92957.0,92933.0,0.34]
[1745419589331,0.10689014,92957.0,92932.0,0.35076055]
[1745419589757,0.10689014,92957.0,92933.0,0.01076044]
[1745419590643,0.10689014,92957.0,92940.0,0.008]
[1745419590852,0.17697784,92957.0,92940.0,0.008]
[1745419591539,0.10689014,92957.0,92940.0,0.008]
[1745419591980,0.10789014,92957.0,92940.0,0.008]
[1745419592200,0.08594573,92948.0,92940.0,0.008]
[1745419592421,0.10689014,92943.0,92940.0,0.008]
[1745419592629,0.08594573,92948.0,92940.0,0.008]
[1745419592630,0.10689014,92941.0,92940.0,0.008]
[1745419595186,0.0497,92949.0,92940.0,0.008]
[1745419595431,0.10689014,92948.0,92940.0,0.008]
[1745419595655,0.006,92941.0,92940.0,0.008]
[1745419596081,0.10689014,92948.0,92940.0,0.008]
[1745419598010,0.004,92941.0,92940.0,0.008]
[1745419598222,0.11587499,92941.0,92940.0,0.008]
[1745419598440,0.12383912,92941.0,92940.0,0.008]
[1745419599586,0.12783912,92941.0,92940.0,0.008]
[1745419599799,0.11587499,92941.0,92940.0,0.008]
[1745419602850,0.00898485,92941.0,92940.0,0.008]
[1745419609112,0.11587499,92941.0,92940.0,0.008]
[1745419611496,0.00898485,92941.0,92940.0,0.008]
[1745419612872,0.004,92941.0,92940.0,0.008]
[1745419613721,0.00860629,92941.0,92940.0,0.008]
[1745419613919,0.004,92941.0,92940.0,0.008]
[1745419614185,0.00860629,92941.0,92940.0,0.008]
[1745419614418,0.004,92941.0,92940.0,0.008]
[1745419614620,0.00860629,92941.0,92940.0,0.008]
[1745419614824,0.004,92941.0,92940.0,0.008]
[1745419615234,0.00852962,92941.0,92940.0,0.008]
[1745419615454,0.004,92941.0,92940.0,0.008]
[1745419615663,0.004,92941.0,92940.0,0.348]
[1745419615865,0.004,92941.0,92940.0,0.22319259]
[1745419616428,0.004,92941.0,92940.0,0.22419259]
[1745419616911,0.12488,92964.0,92954.0,0.010758]
[1745419617076,0.12488,92964.0,92961.0,0.35075719]
[1745419617286,0.12488,92964.0,92961.0,0.34]
[1745419617510,0.12488,92964.0,92961.0,0.35075719]
[1745419617704,0.12488,92964.0,92961.0,0.34]
[1745419618045,0.12688,92964.0,92961.0,0.34]
[1745419618291,0.002,92964.0,92960.0,0.01075731]
[1745419618517,0.12488,92983.0,92964.0,0.34]
[1745419619623,0.12488,92983.0,92961.0,0.34]
[1745419619833,0.12488,92983.0,92961.0,0.35075719]
[1745419620072,0.12488,92983.0,92961.0,0.34]
[1745419620491,0.12322771,92978.0,92961.0,0.34]
[1745419620732,0.31223434,92971.0,92943.0,0.34]
[1745419620987,0.11065529,92970.0,92942.0,0.01075939]
[1745419621417,0.10689014,92970.0,92943.0,0.01075928]
[1745419621632,0.10689014,92970.0,92945.0,0.01075905]
[1745419621864,0.10689014,92970.0,92948.0,0.22593245]
[1745419622076,0.10689014,92970.0,92945.0,0.01075905]
[1745419622513,0.01068901,92969.0,92945.0,0.01075905]
[1745419622733,0.10689014,92969.0,92944.0,0.01075916]
[1745419622955,0.10689014,92969.0,92942.0,0.35075939]
[1745419623159,0.00461535,92979.0,92942.0,0.34]
[1745419623160,0.31223434,92960.0,92942.0,0.34]
[1745419623389,0.10689014,92960.0,92942.0,0.34]
[1745419624045,0.10689014,92960.0,92945.0,0.002]
[1745419624495,0.10689014,92960.0,92941.0,0.34]
[1745419624719,0.10689014,92959.0,92942.0,0.002]
[1745419624967,0.31223434,92952.0,92942.0,0.002]
[1745419625199,0.31223434,92952.0,92940.0,0.009]
[1745419625200,0.11065605,92951.0,92940.0,0.009]
[1745419625670,0.12484,92956.0,92945.0,0.002]
[1745419626122,0.00376572,92955.0,92945.0,0.002]
[1745419626558,0.10689014,92954.0,92945.0,0.002]
[1745419626782,0.00376588,92953.0,92945.0,0.002]
[1745419626998,0.00376588,92953.0,92940.0,0.009]
[1745419626999,0.10689014,92952.0,92940.0,0.009]
[1745419627232,0.36013434,92950.0,92940.0,0.009]
[1745419627497,0.10689014,92949.0,92940.0,0.01]
[1745419627946,0.12484,92956.0,92940.0,0.009]
[1745419628165,0.001,92952.0,92940.0,0.009]
[1745419628819,0.31223434,92950.0,92940.0,0.009]
[1745419629038,0.10889014,92949.0,92940.0,0.009]
[1745419629702,0.00376608,92948.0,92940.0,0.009]
[1745419629930,0.10689014,92947.0,92940.0,0.009]
[1745419630150,0.00376636,92946.0,92940.0,0.009]
[1745419630367,0.10689014,92945.0,92940.0,0.009]
[1745419630589,0.0472,92944.0,92940.0,0.009]
[1745419630819,0.11065672,92943.0,92940.0,0.009]
[1745419631038,0.10689014,92943.0,92940.0,0.009]
[1745419632345,0.11089014,92943.0,92940.0,0.009]
[1745419633738,0.004,92943.0,92942.0,0.42594573]
[1745419633957,0.004,92943.0,92942.0,1.77548187]
[1745419634172,0.004,92943.0,92942.0,1.73273287]
[1745419635048,0.0472,92978.0,92959.0,0.01075743]
[1745419635244,0.0479,92984.0,92965.0,0.01075673]
[1745419635460,0.0479,92984.0,92966.0,0.35075662]
[1745419635686,0.0479,92984.0,92966.0,0.34]
[1745419636180,0.0028498,93009.0,92978.0,0.34]
[1745419636406,0.0028498,93009.0,92978.0,0.37214169]
[1745419636635,0.0028498,93009.0,92978.0,3.24636868]
[1745419637992,0.0028498,93009.0,92988.0,0.56962236]
[1745419638211,0.0028498,93009.0,92988.0,5.83349419]
[1745419638672,0.0028498,93009.0,93008.0,0.56957611]
[1745419638896,0.0028498,93009.0,93008.0,0.70860794]
[1745419639164,0.0008488,93015.0,93008.0,0.70860794]
[1745419639165,0.0008488,93015.0,93014.0,0.56956224]
[1745419639402,0.0008488,93015.0,93014.0,5.23221638]
[1745419639623,0.05016981,93022.0,93021.0,0.56954606]
[1745419639848,0.05016981,93022.0,93021.0,3.83552889]
[1745419640066,0.00085,93034.0,93028.0,0.56952988]
[1745419640298,0.00085,93034.0,93028.0,0.67642002]
[1745419640523,0.00085,93034.0,93028.0,4.82605702]
[1745419640740,0.00085,93034.0,93028.0,4.85723218]
[1745419641219,0.00085,93034.0,93033.0,0.56951833]
[1745419641448,0.00085,93034.0,93033.0,0.70855016]
[1745419641679,0.00085,93034.0,93033.0,0.7729723]
[1745419641902,0.00085,93034.0,93033.0,5.7729723]
[1745419642357,0.00085,93047.0,93044.0,0.0107476]
[1745419642568,0.05016981,93065.0,93048.0,0.01454085]
[1745419642810,0.05016981,93065.0,93048.0,5.67637381]
[1745419643027,0.05016981,93065.0,93048.0,3.42206881]
[1745419643244,0.002,93069.0,93048.0,3.20857281]
[1745419643462,0.002,93069.0,93068.0,0.56943748]
[1745419643680,0.002,93069.0,93068.0,0.70846931]
[1745419643896,0.002,93069.0,93068.0,5.70846931]
[1745419644583,0.0008498,93072.0,93071.0,0.56943055]
[1745419644816,0.0008498,93072.0,93071.0,0.67632069]
[1745419645053,0.0008498,93072.0,93071.0,5.67632069]
[1745419645490,0.0008498,93072.0,93071.0,5.67732069]
[1745419645930,0.0008498,93072.0,93071.0,5.67632069]
[1745419646137,0.0008498,93072.0,93071.0,4.79238473]
[1745419646566,0.0008498,93072.0,93071.0,5.00827443]
[1745419647471,0.0008498,93072.0,93071.0,5.00627443]
[1745419647657,0.0008498,93072.0,93071.0,5.00927443]
[1745419648048,0.0008498,93072.0,93071.0,5.02381528]
[1745419648448,0.0008498,93072.0,93071.0,4.89945528]
[1745419648660,0.0008498,93072.0,93071.0,5.02377528]
[1745419649075,0.0008498,93072.0,93071.0,5.02477528]
[1745419649365,0.002,93089.0,93079.0,0.57041208]
[1745419649585,0.002,93089.0,93088.0,0.56939131]
[1745419649809,0.002,93089.0,93088.0,0.67628145]
[1745419650035,0.002,93089.0,93088.0,5.44689014]
[1745419650256,0.002,93089.0,93088.0,4.12207899]
[1745419650473,0.002,93089.0,93088.0,0.46143099]
[1745419650694,0.002,93089.0,93088.0,1.09659514]
[1745419651187,0.002,93089.0,93075.0,0.01074402]
[1745419651439,0.002,93089.0,93088.0,0.002]
[1745419651950,0.002,93089.0,93088.0,0.44689014]
[1745419652374,0.002,93089.0,93088.0,0.95406714]
[1745419653280,0.00085,93110.0,93096.0,0.0107416]